bitfinex-derivatives/quotes_ETHF0:USTF0_20250727
["timestamp","ask_amount","ask_price","bid_price","bid_amount"]
[1753581673512,22.6717,3757.8,3757.7,2.76355]
[1753581674012,22.8726,3757.8,3757.7,2.76355]
[1753581675720,1.9864,3758.4,3758.3,2.76345]
[1753581675914,23.70035,3758.4,3758.3,2.2315]
[1753581676110,23.70035,3758.4,3758.3,1.0096]
[1753581676317,23.70035,3758.4,3758.3,0.81886]
[1753581677017,23.70035,3758.4,3758.3,0.2869]
[1753581677416,23.70035,3758.4,3758.3,0.81886]
[1753581678014,23.1684,3758.4,3758.3,2.76346]
[1753581678610,23.70035,3758.4,3758.3,2.76346]
[1753581678913,2.51835,3758.4,3758.3,2.76346]
[1753581679122,23.69835,3758.4,3758.3,2.76346]
[1753581679617,23.69835,3758.4,3758.3,2.2315]
[1753581680921,23.69835,3758.4,3758.3,2.76346]
[1753581682222,23.69835,3758.4,3758.3,2.2315]
[1753581682623,23.39555,3758.4,3758.3,2.76346]
[1753581683124,23.69835,3758.4,3758.3,2.76346]
[1753581683325,23.69835,3758.4,3758.3,2.2315]
[1753581683625,23.69835,3758.4,3758.3,2.76346]
[1753581684423,23.69835,3758.4,3758.3,2.2315]
[1753581684818,1.45138,3758.2,3758.1,0.90479]
[1753581685019,23.69738,3758.2,3758.1,1.36439]
[1753581685525,23.69738,3758.2,3758.1,1.3824]
[1753581686622,23.69738,3758.2,3758.1,1.8902]
[1753581686928,23.69738,3758.2,3758.1,2.2315]
[1753581687126,23.69738,3758.2,3758.1,2.76349]
[1753581689732,23.69738,3758.2,3758.1,2.2315]
[1753581690228,23.69738,3758.2,3758.1,2.76349]
[1753581690426,23.69738,3758.2,3758.1,2.2315]
[1753581690728,23.69738,3758.2,3758.1,2.76349]
[1753581692529,22.2917,3758.2,3758.1,2.76349]
[1753581692922,22.6901,3758.2,3758.1,2.76349]
[1753581693727,22.2917,3758.2,3758.1,2.76349]
[1753581694432,22.8904,3758.2,3758.1,2.76349]
[1753581695132,23.71618,3758.2,3758.1,2.76349]
[1753581696426,23.1842,3758.2,3758.1,2.76349]
[1753581698734,23.71618,3758.2,3758.1,2.76349]
[1753581699135,23.1842,3758.2,3758.1,2.76349]
[1753581701229,22.8904,3758.2,3758.1,2.76349]
[1753581701736,23.1842,3758.2,3758.1,2.76349]
[1753581702937,23.71618,3758.2,3758.1,2.76349]
[1753581705432,24.51317451,3758.2,3758.1,2.25569]
[1753581706240,24.51317451,3758.2,3758.1,2.74289]
[1753581706645,24.51317451,3758.2,3758.1,2.2109]
[1753581706839,1.41982,3758.0,3757.9,1.52941]
[1753581707034,23.72942,3758.0,3757.9,1.52941]
[1753581707237,23.72942,3758.0,3757.9,1.92321]
[1753581707439,23.1974,3758.0,3757.9,2.75681]
[1753581712748,23.72941,3758.0,3757.9,2.75681]
[1753581713244,23.1974,3758.0,3757.9,2.75681]
[1753581714747,23.72941,3758.0,3757.9,2.75681]
[1753581715047,23.1974,3758.0,3757.9,2.75681]
[1753581717150,23.72941,3758.0,3757.9,2.75681]
[1753581717645,23.1974,3758.0,3757.9,2.75681]
[1753581718446,23.72941,3758.0,3757.9,2.75681]
[1753581718647,23.1974,3758.0,3757.9,2.75681]
[1753581721444,22.9036,3758.0,3757.9,2.75681]
[1753581721747,22.7033,3758.0,3757.9,2.75681]
[1753581722345,22.904,3758.0,3757.9,2.75681]
[1753581724052,23.74081,3758.0,3757.9,2.75681]
[1753581724854,23.2088,3758.0,3757.9,2.75681]
[1753581742163,22.7033,3758.0,3757.9,2.75681]
[1753581742958,22.904,3758.0,3757.9,2.75681]
[1753581746463,23.2088,3758.0,3757.9,2.75681]
[1753581756768,22.3049,3758.0,3757.9,2.75681]
[1753581756969,21.767,3758.0,3757.9,2.75681]
[1753581757370,22.2469,3758.0,3757.9,2.75681]
[1753581757570,22.6037,3758.0,3757.9,2.75681]
[1753581759768,22.8046,3758.0,3757.9,2.75681]
[1753581759965,21.767,3758.0,3757.9,2.75681]
[1753581760366,21.173,3758.0,3757.9,2.75681]
[1753581760766,22.2621,3758.0,3757.9,2.75681]
[1753581760967,22.8077,3758.0,3757.9,2.75681]
[1753581767575,22.6057,3758.0,3757.9,2.75681]
[1753581768175,22.8077,3758.0,3757.9,2.75681]
[1753581769080,22.6057,3758.0,3757.9,2.75681]
[1753581769577,22.8077,3758.0,3757.9,2.75681]
[1753581771483,22.2489,3758.0,3757.9,2.75681]
[1753581772282,22.6057,3758.0,3757.9,2.75681]
[1753581772782,22.8077,3758.0,3757.9,2.75681]
[1753581774186,0.7323,3758.5,3758.4,2.71455]
[1753581774483,0.798,3759.1,3759.0,1.37506]
[1753581774678,22.74316352,3759.1,3759.0,2.71446]
[1753581775080,23.57986352,3759.1,3759.0,2.71446]
[1753581775877,23.37786352,3759.1,3759.0,2.71446]
[1753581776078,0.79416352,3759.1,3759.0,2.71446]
[1753581776282,1.0759,3759.7,3759.6,2.71438]
[1753581777385,21.151,3759.8,3759.7,2.66107]
[1753581778485,0.2,3759.9,3759.8,2.70195]
[1753581779987,0.7164,3759.9,3759.8,2.70195]
[1753581780185,1.6326,3759.9,3759.8,2.1702]
[1753581780385,1.9456,3759.6,3759.5,0.53179]
[1753581780985,1.9456,3759.6,3759.5,1.65379]
[1753581781285,1.9456,3759.6,3759.5,1.90969]
[1753581781485,1.9456,3759.6,3759.5,0.84179]
[1753581781684,23.0896,3759.6,3759.5,0.84179]
[1753581781882,23.0896,3759.6,3759.5,0.53179]
[1753581782990,0.5164,3759.2,3759.0,0.812]
[1753581783292,22.5329,3759.2,3759.1,0.53184]
[1753581783482,22.5329,3759.2,3759.1,2.22794]
[1753581783687,22.5766,3759.2,3759.1,2.70204]
[1753581784089,21.144,3759.2,3759.1,2.70204]
[1753581784284,21.144,3759.2,3758.6,1.32979]
[1753581784285,0.5164,3759.6,3759.4,2.1702]
[1753581784495,0.2,3759.9,3759.8,2.70195]
[1753581785391,0.7164,3759.9,3759.8,2.70195]
[1753581785585,1.6326,3759.9,3759.8,2.70195]
[1753581786096,1.8329,3759.9,3759.8,2.70195]
[1753581789192,0.2,3759.9,3759.8,2.70195]
[1753581789391,2.1456,3759.9,3759.8,2.70195]
[1753581789995,1.9456,3759.3,3759.2,1.53124]
[1753581790195,1.9456,3759.3,3759.2,0.84184]
[1753581790394,1.9456,3759.3,3759.2,1.27534]
[1753581790799,1.9456,3759.3,3759.2,0.53184]
[1753581791494,0.5598,3759.4,3759.3,0.5741]
[1753581791690,0.7567,3759.9,3759.6,1.2626]
[1753581791896,22.9719,3759.9,3759.8,1.79435]
[1753581792095,23.2846,3759.9,3759.8,2.70195]
[1753581795498,22.9719,3759.9,3759.8,2.70195]
[1753581797104,23.2846,3759.9,3759.8,2.70195]
[1753581798104,22.7716,3759.9,3759.8,2.70195]
[1753581798303,21.8978,3759.9,3759.8,2.70195]
[1753581799409,22.4142,3759.9,3759.8,2.70195]
[1753581799606,22.9709,3759.9,3759.8,2.70195]
[1753581799999,23.2836,3759.9,3759.8,2.70195]
[1753581800904,23.2836,3759.9,3759.8,0.84175]
[1753581801803,23.2836,3759.9,3759.5,0.4741]
[1753581802009,0.8725,3759.3,3759.2,1.90974]
[1753581802202,1.9456,3759.3,3759.2,2.70204]
[1753581803011,1.9456,3759.3,3759.2,1.53124]
[1753581803312,1.9456,3759.3,3759.2,0.53184]
[1753581803508,1.0731,3759.2,3759.1,0.53184]
[1753581803807,1.9456,3758.7,3758.6,2.22802]
[1753581804017,23.0826,3758.7,3758.6,0.53192]
[1753581806611,22.0095,3758.7,3758.6,0.53192]
[1753581807210,23.0826,3758.7,3758.6,0.53192]
[1753581807410,22.0095,3758.7,3758.5,0.96543]
[1753581807610,1.9266,3758.6,3758.5,1.50163]
[1753581807813,1.9266,3758.6,3758.5,1.87963]
[1753581809009,1.9266,3758.6,3758.5,2.37653]
[1753581809712,1.9266,3758.6,3758.5,2.68923]
[1753581810814,1.9266,3758.6,3758.5,2.1573]
[1753581811517,1.9266,3758.6,3758.5,2.68923]
[1753581812416,1.9266,3758.6,3758.5,2.1573]
[1753581812616,2.45852,3758.6,3758.5,0.9697]
[1753581812812,2.45852,3758.6,3758.5,0.2853]
[1753581813117,1.4384,3758.1,3758.0,1.3548]
[1753581813309,23.59959,3758.1,3757.9,0.53201]
[1753581813510,1.9266,3758.0,3757.9,1.50881]
[1753581813712,1.7261,3758.0,3757.9,1.88681]
[1753581813917,2.45861,3758.0,3757.9,2.38371]
[1753581814218,2.45861,3758.0,3757.9,1.8517]
[1753581814412,1.7261,3757.8,3757.7,1.50884]
[1753581814612,23.59963,3757.8,3757.7,0.9768]
[1753581815408,23.59963,3757.8,3757.5,0.2853]
[1753581815409,2.45866,3757.6,3757.5,0.2853]
[1753581815623,1.39349,3757.4,3757.3,1.3548]
[1753581815814,23.59969,3757.4,3757.3,0.9768]
[1753581816313,2.45873,3757.1,3757.0,1.3548]
[1753581816514,23.0696,3757.1,3757.0,1.88695]
[1753581817018,23.0696,3757.1,3757.0,2.69655]
[1753581817214,23.0696,3757.1,3757.0,2.1644]
[1753581817519,23.0696,3757.1,3757.0,2.69655]
[1753581817715,23.0696,3757.1,3757.0,2.1644]
[1753581817916,23.60173,3757.1,3757.0,1.6675]
[1753581818119,23.60173,3757.1,3757.0,0.9768]
[1753581818319,23.60173,3757.1,3757.0,0.2853]
[1753581818520,2.45876,3756.9,3756.8,0.5362]
[1753581818826,0.8614,3756.7,3756.6,0.9768]
[1753581819020,23.0746,3756.7,3756.6,0.9768]
[1753581819321,23.0746,3756.7,3756.6,2.6966]
[1753581820915,21.146,3756.7,3756.6,2.6966]
[1753581824124,1.7261,3757.0,3756.9,1.38106]
[1753581824325,23.0746,3757.0,3756.9,2.69656]
[1753581825123,1.9266,3757.0,3756.9,2.69656]
[1753581825321,23.0746,3757.0,3756.9,2.69656]
[1753581825529,21.148,3757.0,3756.9,2.69656]
[1753581826117,1.0505,3757.2,3757.1,1.38103]
[1753581826322,22.7806,3757.2,3757.1,2.69653]
[1753581826829,1.6286,3757.2,3757.1,2.69653]
[1753581827031,22.579,3757.2,3757.1,2.69653]
[1753581827223,1.427,3757.2,3757.1,2.69653]
[1753581827526,22.578,3757.2,3757.1,2.69653]
[1753581827826,0.53206,3757.6,3757.4,0.53209]
[1753581828018,22.7786,3757.5,3757.4,2.69649]
[1753581830728,23.0777,3757.5,3757.4,2.69649]
[1753581832232,0.8614,3757.3,3757.1,0.4969]
[1753581832527,1.9277,3757.3,3757.2,0.53212]
[1753581832728,23.62281,3757.3,3757.1,0.53213]
[1753581832927,1.9277,3757.2,3757.1,0.53213]
[1753581833323,1.39352,3757.2,3757.0,1.35074]
[1753581833524,1.9277,3757.1,3757.0,1.88694]
[1753581833724,1.4395,3756.8,3756.7,1.3548]
[1753581834025,23.0897,3756.8,3756.7,1.88699]
[1753581834225,23.0897,3756.8,3756.7,2.69659]
[1753581834628,23.0897,3756.8,3756.7,1.50899]
[1753581835230,23.62188,3756.8,3756.7,0.9768]
[1753581835530,23.0897,3756.8,3756.7,1.50899]
[1753581837135,23.0897,3756.8,3756.7,1.88699]
[1753581837433,23.0897,3756.8,3756.7,2.69659]
[1753581841032,23.0897,3756.8,3756.7,2.19969]
[1753581841929,23.0897,3756.8,3756.7,2.68409]
[1753581842929,23.0897,3756.8,3756.7,0.81749]
[1753581843533,23.0897,3756.8,3756.7,1.27999]
[1753581844037,23.62188,3756.8,3756.7,1.27999]
[1753581844238,1.8772,3756.6,3756.5,0.53221]
[1753581844432,1.8772,3756.4,3756.3,1.28174]
[1753581844740,23.0312,3756.4,3756.3,1.28174]
[1753581845140,23.0312,3756.4,3756.3,0.7495]
[1753581845338,22.0108,3756.4,3756.3,0.53225]
[1753581845839,22.0108,3756.4,3756.3,0.4625]
[1753581846138,23.0312,3756.4,3756.3,0.99475]
[1753581846337,23.0312,3756.4,3756.3,0.7495]
[1753581846838,23.0312,3756.4,3756.3,1.87945]
[1753581847138,23.0312,3756.4,3756.3,2.36385]
[1753581848339,23.0312,3756.4,3756.3,2.67845]
[1753581849034,1.8772,3756.3,3756.2,2.38248561]
[1753581849534,1.8772,3756.3,3756.2,2.69708561]
[1753581850033,1.0111,3756.3,3756.2,2.69708561]
[1753581850233,1.3648,3756.6,3756.5,2.67842]
[1753581850434,1.5646,3756.9,3756.8,1.36168]
[1753581850644,22.7206,3756.9,3756.8,2.67838]
[1753581850829,23.25276,3756.9,3756.8,2.1462]
[1753581851035,23.0332,3756.9,3756.8,2.67838]
[1753581854543,2.40932,3757.2,3757.1,2.1462]
[1753581854840,24.35726702,3757.2,3757.1,2.1462]
[1753581855036,24.35726702,3757.2,3757.1,0.9774]
[1753581855642,23.82514702,3757.2,3757.1,2.36373]
[1753581857344,24.35726702,3757.2,3757.1,1.8316]
[1753581857942,23.56332,3757.2,3757.1,1.8316]
[1753581858131,23.56332,3757.2,3757.1,2.36373]
[1753581858535,23.56332,3757.2,3757.1,1.8316]
[1753581859536,0.8568,3756.4,3756.3,1.73155]
[1753581859845,23.58543,3756.4,3756.3,1.6837]
[1753581860238,23.58543,3756.4,3756.3,2.1462]
[1753581860842,23.0532,3756.4,3756.3,2.1462]
[1753581861240,23.0532,3756.4,3756.3,2.67845]
[1753581861441,23.0532,3756.4,3756.3,2.1462]
[1753581861742,23.58543,3756.4,3756.3,2.1462]
[1753581862838,23.0532,3756.4,3756.3,2.1462]
[1753581863444,23.58543,3756.4,3756.3,2.1462]
[1753581863645,23.58543,3756.4,3756.3,1.6618]
[1753581864045,23.0532,3756.4,3756.3,1.6618]
[1753581864245,23.0532,3756.4,3756.3,2.67845]
[1753581864539,1.8772,3756.3,3756.2,0.01863561]
[1753581864846,1.8772,3756.3,3756.2,1.85023561]
[1753581865046,1.8772,3756.3,3756.2,2.16483561]
[1753581865241,1.8772,3756.3,3756.2,2.69709561]
[1753581865738,1.8772,3756.3,3756.2,2.16483561]
[1753581866839,1.8772,3756.3,3756.2,2.69709561]
[1753581870148,1.8772,3756.3,3756.2,2.16483561]
[1753581870545,1.8772,3756.3,3756.2,2.69709561]
[1753581871349,1.8772,3756.3,3756.2,2.16483561]
[1753581871547,2.40945,3756.3,3756.2,2.16483561]
[1753581871846,21.176,3756.4,3755.6,1.33086]
[1753581871847,1.38689,3756.0,3755.9,0.4688]
[1753581872049,1.38689,3756.0,3755.8,0.19702597]
[1753581872050,2.4068,3755.9,3755.8,0.66582597]
[1753581872250,2.4068,3755.9,3755.8,0.19702597]
[1753581872945,1.8745,3755.9,3755.8,0.72934597]
[1753581873147,2.4068,3755.9,3755.8,0.72934597]
[1753581873650,2.4068,3755.9,3755.8,0.19702597]
[1753581873845,2.4068,3755.9,3755.8,0.72934597]
[1753581874049,1.8745,3755.9,3755.8,0.72934597]
[1753581874651,1.8745,3755.9,3755.8,1.19814597]
[1753581874847,1.0881,3756.2,3756.1,1.13537]
[1753581875047,22.7379,3756.2,3756.1,2.66987]
[1753581875448,23.57976,3756.2,3756.1,2.66987]
[1753581875956,23.0475,3756.2,3756.1,2.66987]
[1753581877150,23.57976,3756.2,3756.1,2.66987]
[1753581878246,2.40676,3756.2,3756.1,2.66987]
[1753581878451,23.57676,3756.2,3756.1,2.66987]
[1753581879554,23.0445,3756.2,3756.1,2.66987]
[1753581880053,1.8745,3756.6,3756.5,2.66982]
[1753581880245,23.0425,3756.6,3756.5,2.66982]
[1753581880757,1.8745,3756.6,3756.5,2.66982]
[1753581880952,23.0455,3756.6,3756.5,2.66982]
[1753581881461,23.5777,3756.6,3756.5,2.66982]
[1753581881757,23.5777,3756.6,3756.5,2.1376]
[1753581882056,23.5777,3756.6,3756.5,2.66982]
[1753581885655,23.0455,3756.6,3756.5,2.66982]
[1753581885957,23.5777,3756.6,3756.5,2.66982]
[1753581886352,23.0455,3756.6,3756.5,2.66982]
[1753581886858,22.1928,3756.6,3756.5,2.66982]
[1753581887060,1.0218,3756.6,3756.5,2.66982]
[1753581887254,21.162,3756.6,3756.5,2.66982]
[1753581887955,1.0218,3756.9,3756.8,2.66978]
[1753581888155,0.4768,3757.3,3757.0,2.1376]
[1753581888354,21.161,3757.2,3757.1,2.66973]
[1753581892955,1.3314,3757.5,3757.4,0.53209]
[1753581893162,23.0542,3757.5,3757.4,2.66969]
[1753581901865,0.8224,3756.9,3756.7,0.53219]
[1753581902158,1.809,3756.7,3756.3,0.4485]
[1753581902362,0.8224,3756.5,3756.4,0.9825]
[1753581902665,23.51622,3756.5,3756.4,1.3196]
[1753581902862,1.35466,3756.2,3756.1,2.0999]
[1753581903058,23.51626,3756.2,3756.1,2.0999]
[1753581904065,22.984,3756.2,3756.1,2.0999]
[1753581904267,23.51626,3756.2,3756.1,2.0999]
[1753581905359,23.51626,3756.2,3756.1,1.3196]
[1753581906064,23.51626,3756.2,3756.1,2.0999]
[1753581910265,23.51626,3756.2,3756.1,2.63217]
[1753581910766,23.51626,3756.2,3756.1,2.0999]
[1753581912267,23.51626,3756.2,3756.1,2.63217]
[1753581912865,23.51626,3756.2,3756.1,2.0999]
[1753581913170,23.51626,3756.2,3756.1,2.63217]
[1753581914566,23.51626,3756.2,3756.1,0.9825]
[1753581914756,1.3547,3756.0,3755.9,1.3196]
[1753581914956,23.5023,3756.0,3755.9,1.3196]
[1753581915168,2.3413,3755.9,3755.8,0.19702597]
[1753581915665,2.3413,3755.9,3755.8,1.28142597]
[1753581915855,2.3413,3755.9,3755.8,1.51662597]
[1753581916263,2.3413,3755.9,3755.8,0.19702597]
[1753581919363,2.3413,3755.9,3755.8,0.64552597]
[1753581920468,2.3413,3755.9,3755.8,0.19702597]
[1753581921767,1.35476,3755.5,3755.4,0.8711]
[1753581922072,2.34139,3755.3,3755.2,1.7945]
[1753581922270,23.52339,3755.3,3755.2,2.0999]
[1753581925373,22.991,3755.3,3755.2,2.6323]
[1753581925769,22.99,3755.3,3755.2,2.6323]
[1753581926175,22.99,3755.3,3755.2,2.0999]
[1753581926373,23.52239,3755.3,3755.2,2.0999]
[1753581926674,22.99,3755.3,3755.2,2.6323]
[1753581927376,23.52239,3755.3,3755.2,2.0999]
[1753581928178,22.99,3755.3,3755.2,1.852]
[1753581928376,23.52239,3755.3,3755.2,1.3196]
[1753581928576,23.52239,3755.3,3755.2,2.0848]
[1753581929178,22.983,3755.3,3755.2,2.0848]
[1753581929379,23.51539,3755.3,3755.2,2.0848]
[1753581929567,23.51539,3755.3,3755.2,0.9825]
[1753581929773,2.32902,3755.1,3755.0,1.7752]
[1753581930167,23.50302,3755.1,3755.0,2.067]
[1753581930873,22.9706,3755.1,3755.0,2.59943]
[1753581931078,1.7966,3755.1,3755.0,2.59943]
[1753581931378,22.9716,3755.1,3755.0,2.59943]
[1753581933079,23.50402,3755.1,3755.0,2.59943]
[1753581933277,23.49902,3755.1,3755.0,2.59943]
[1753581933880,23.49902,3755.1,3755.0,2.067]
[1753581935380,2.32902,3755.1,3755.0,2.067]
[1753581935686,1.7966,3755.1,3755.0,2.59943]
[1753581935978,22.9636,3755.1,3755.0,2.067]
[1753581936380,23.49602,3755.1,3755.0,2.067]
[1753581936579,23.49602,3755.1,3755.0,2.59943]
[1753581936773,22.9636,3755.1,3755.0,2.59943]
[1753581937682,23.49602,3755.1,3755.0,2.59943]
[1753581937876,22.9636,3755.1,3755.0,2.59943]
[1753581938888,23.49602,3755.1,3755.0,2.59943]
[1753581939087,23.49602,3755.1,3755.0,2.067]
[1753581939280,23.49602,3755.1,3755.0,2.59943]
[1753581939887,22.9636,3755.1,3755.0,2.59943]
[1753581940085,23.49602,3755.1,3755.0,2.59943]
[1753581940387,23.49602,3755.1,3755.0,2.067]
[1753581940587,22.9636,3755.1,3755.0,2.59943]
[1753581940788,23.49602,3755.1,3755.0,2.59943]
[1753581940989,22.9636,3755.1,3755.0,2.59943]
[1753581941180,22.9636,3755.1,3755.0,2.067]
[1753581941383,23.49602,3755.1,3755.0,0.7444]
[1753581941687,2.32904,3754.9,3754.8,1.3018]
[1753581941881,23.49504,3754.9,3754.8,2.067]
[1753581942079,22.9626,3754.9,3754.8,2.59946]
[1753581947884,1.7966,3754.9,3754.8,2.59946]
[1753581948085,22.9626,3754.9,3754.8,2.59946]
[1753581949387,23.49504,3754.9,3754.6,0.3393]
[1753581949589,2.32906,3754.8,3754.7,0.98237]
[1753581950088,2.32906,3754.8,3754.7,1.32167]
[1753581950291,1.7966,3754.8,3754.7,1.32167]
[1753581951093,1.7966,3754.8,3754.7,1.61617]
[1753581951293,2.32906,3754.8,3754.7,2.30767]
[1753581951497,1.7966,3754.8,3754.7,2.30767]
[1753581952095,1.7966,3754.8,3754.7,2.59947]
[1753581954291,2.32906,3754.8,3754.7,2.067]
[1753581954591,2.32906,3754.8,3754.7,0.7444]
[1753581955188,2.32906,3754.8,3754.7,1.0837]
[1753581955396,2.32906,3754.8,3754.7,1.3018]
[1753581955589,2.32906,3754.8,3754.7,1.7752]
[1753581955989,0.5325,3754.6,3754.5,0.5325]
[1753581956292,22.9626,3754.6,3754.5,0.5325]
[1753581956491,23.49509,3754.6,3754.5,0.5325]
[1753581956695,0.8054,3754.4,3754.3,0.2945]
[1753581956895,22.9626,3754.4,3754.3,0.2945]
[1753581957085,22.9626,3754.4,3754.3,1.27693]
[1753581957289,22.9626,3754.4,3754.3,2.30773]
[1753581957894,22.9626,3754.4,3754.3,2.59953]
[1753581965596,22.9626,3754.4,3754.3,0.9625]
[1753581966003,23.49512,3754.4,3754.3,0.9625]
[1753581966396,22.9626,3754.4,3754.3,1.49503]
[1753581966592,22.9626,3754.4,3754.3,1.82303]
[1753581966799,22.9626,3754.4,3754.3,2.55633]
[1753581968303,23.49512,3754.4,3754.3,2.55633]
[1753581968504,22.9626,3754.4,3754.3,2.55633]
[1753581972104,22.9626,3754.4,3754.3,0.53253]
[1753581972297,1.781,3753.9,3753.8,2.21763095]
[1753581972500,22.949,3753.9,3753.8,2.21763095]
[1753581972706,23.48159,3753.9,3753.8,0.19713095]
[1753581974813,22.949,3753.9,3753.8,1.15803095]
[1753581975116,1.33119,3754.8,3754.0,1.35587]
[1753581975117,1.1548,3754.1,3754.0,1.35587]
[1753581975316,22.6614,3754.1,3754.0,2.55307]
[1753581975513,23.48056,3754.1,3754.0,2.55307]
[1753581975711,23.48056,3754.1,3754.0,2.0205]
[1753581976111,23.48056,3754.1,3754.0,2.55307]
[1753581976306,22.948,3754.1,3754.0,2.55307]
[1753581976708,22.95,3754.1,3754.0,2.55307]
[1753581977116,23.48256,3754.1,3754.0,2.55307]
[1753581977316,23.48256,3754.1,3754.0,2.0205]
[1753581977917,23.48256,3754.1,3754.0,2.55307]
[1753581978118,22.95,3754.1,3754.0,2.55307]
[1753581978619,1.781,3754.1,3754.0,2.55307]
[1753581978823,1.781,3754.4,3754.3,0.8233]
[1753581979014,22.95,3754.4,3754.3,2.0205]
[1753581979718,22.95,3754.4,3754.3,2.55303]
[1753581980418,23.48252,3754.4,3754.3,2.55303]
[1753581981317,23.48252,3754.4,3754.3,0.9592]
[1753581981715,1.781,3754.2,3754.1,1.1702]
[1753581982015,23.48254,3754.2,3754.1,1.7281]
[1753581982416,22.95,3754.2,3754.1,2.55306]
[1753581982611,23.48254,3754.2,3754.1,2.55306]
[1753581983718,23.48254,3754.2,3754.1,2.0205]
[1753581985016,0.74749,3753.9,3753.8,1.55302095]
[1753581985216,23.48259,3753.9,3753.8,2.21763095]
[1753581985617,23.48259,3753.9,3753.8,2.75023095]
[1753581988825,22.95,3753.9,3753.8,2.75023095]
[1753581989223,23.48259,3753.9,3753.8,2.75023095]
[1753581990521,23.48259,3753.9,3753.8,2.21763095]
[1753581993124,2.31359,3753.9,3753.8,2.21763095]
[1753581993324,23.48259,3753.9,3753.8,2.21763095]
[1753581994025,0.5259,3753.8,3753.7,0.4486]
[1753581994227,2.2782,3753.8,3753.7,1.0567]
[1753581995527,2.2782,3753.8,3753.7,2.0159]
[1753581996622,2.2782,3753.8,3753.7,2.54851]
[1753581997126,2.2782,3753.8,3753.7,2.0159]
[1753581997425,2.2782,3753.8,3753.7,2.54851]
[1753581998424,2.2782,3753.8,3753.7,2.0159]
[1753581999428,2.2782,3753.8,3753.7,2.54851]
[1753582000522,2.2782,3753.8,3753.7,2.0159]
[1753582000829,2.2782,3753.8,3753.7,2.54852]
[1753582001526,2.2782,3753.8,3753.7,2.0159]
[1753582002523,2.2782,3753.8,3753.7,2.54852]
[1753582002725,2.2782,3753.8,3753.7,0.4486]
[1753582003022,2.2782,3753.8,3753.7,1.2798]
[1753582003224,2.2782,3753.8,3753.7,2.54851]
[1753582003424,2.2782,3753.8,3753.7,2.0159]
[1753582005029,2.2782,3753.8,3753.7,2.54852]
[1753582005325,0.9339,3753.8,3753.7,2.54852]
[1753582005526,21.169,3753.9,3753.8,1.3468]
[1753582005726,0.7433,3754.2,3754.1,2.54846]
[1753582006026,22.38526488,3754.2,3754.1,2.54846]
[1753582006226,22.92326488,3754.2,3754.1,2.54846]
[1753582007932,23.71206488,3754.2,3754.1,2.54846]
[1753582008231,22.9146,3754.2,3754.1,2.54846]
[1753582013741,23.44714,3754.2,3754.1,2.54846]
[1753582016542,23.44714,3754.2,3754.1,1.27876]
[1753582016943,23.44714,3754.2,3754.1,1.58926]
[1753582017138,23.44714,3754.2,3754.1,1.81236]
[1753582017441,23.44714,3754.2,3754.1,2.54846]
[1753582018643,22.9146,3754.2,3754.1,2.54846]
[1753582021045,23.44714,3754.2,3754.1,2.54846]
[1753582023047,23.44714,3754.2,3754.1,2.0159]
[1753582023345,23.44714,3754.2,3754.1,2.54846]
[1753582023845,22.9146,3754.2,3754.1,2.54846]
[1753582024645,22.6288,3754.2,3754.1,2.54846]
[1753582024847,23.16134,3754.2,3754.1,2.54846]
[1753582025447,1.99234,3754.2,3754.1,2.54846]
[1753582025647,23.15834,3754.2,3754.1,2.54846]
[1753582025947,23.46174,3754.2,3754.1,2.0159]
[1753582026147,2.29574,3754.2,3754.1,2.0159]
[1753582026445,23.46174,3754.2,3754.1,2.0159]
[1753582027147,23.46174,3754.2,3754.1,2.54846]
[1753582027448,2.29574,3754.2,3754.1,2.54846]
[1753582027648,23.46174,3754.2,3754.1,2.54846]
[1753582031050,22.9292,3754.2,3754.1,2.54846]
[1753582031351,23.46174,3754.2,3754.1,2.54846]
[1753582043459,1.7632,3754.2,3754.1,2.54846]
[1753582043662,22.9262,3754.2,3754.1,2.54846]
[1753582043962,23.45874,3754.2,3754.1,2.54846]
[1753582045260,1.03234,3754.3,3754.2,0.8177]
[1753582045465,22.99432694,3754.3,3754.2,2.0089]
[1753582045861,23.93902694,3754.3,3754.2,2.0089]
[1753582046457,23.93902694,3754.3,3754.2,2.54144]
[1753582046663,24.24242694,3754.3,3754.2,2.0089]
[1753582048067,0.53256,3754.1,3754.0,1.25916]
[1753582048261,23.39226,3754.1,3754.0,2.21816]
[1753582048461,23.39226,3754.1,3754.0,1.2547]
[1753582049763,0.7653,3753.9,3753.5,0.4309]
[1753582049955,2.23033,3753.6,3753.5,0.4382]
[1753582050158,23.39133,3753.6,3753.5,1.0368]
[1753582050361,23.39133,3753.6,3753.5,1.9688]
[1753582051064,22.8587,3753.6,3753.5,1.9688]
[1753582051963,23.39133,3753.6,3753.5,2.50144]
[1753582052267,23.39133,3753.6,3753.5,0.9445]
[1753582052469,23.39133,3753.6,3753.5,1.6856]
[1753582052767,23.39133,3753.6,3753.5,1.9688]
[1753582052967,23.39133,3753.6,3753.5,2.50144]
[1753582054471,23.39133,3753.6,3753.5,1.9688]
[1753582056372,23.39133,3753.6,3753.5,2.50144]
[1753582058566,23.39133,3753.6,3753.5,1.2547]
[1753582058768,23.39133,3753.6,3753.5,2.50144]
[1753582059871,23.39133,3753.6,3753.5,1.9688]
[1753582060675,1.29797,3753.3,3753.2,1.9874505]
[1753582060877,23.39137,3753.3,3753.2,1.9874505]